fUSD/lending_fUSD_20250313
["ID","MTS","AMOUNT","RATE_DAILY","PERIOD"]
[356062661,1741877473733,-500.0,0.00028432,18]
[356062662,1741877473743,-500.0,0.00028432,18]
[356062663,1741877473753,-504.71939066,0.00028432,18]
[356062664,1741877473763,-500.0,0.00028432,18]
[356062665,1741877473773,-1222.98,0.00028432,18]
[356062666,1741877473784,-1222.98,0.00028432,18]
[356062667,1741877473794,-1076.94,0.00028432,18]
[356062668,1741877473804,-920.42,0.00028432,18]
[356062669,1741877473814,-500.0,0.00028432,18]
[356062670,1741877473825,-500.0,0.00028432,18]
[356062671,1741877473839,-806.85,0.00028432,18]
[356062672,1741877473849,-500.0,0.00028432,18]
[356062673,1741877473858,-500.0,0.00028432,18]
[356062674,1741877473869,-500.0,0.00028432,18]
[356062675,1741877473879,-500.0,0.00028432,18]
[356062676,1741877473888,-500.0,0.00028432,18]
[356062677,1741877473898,-500.0,0.00028432,18]
[356062678,1741877473911,-612.98,0.00028432,18]
[356062679,1741877473921,-500.0,0.00028432,18]
[356062680,1741877473931,-500.0,0.00028432,18]
[356062681,1741877473941,-500.0,0.00028432,18]
[356062682,1741877473950,-500.0,0.00028432,18]
[356062683,1741877473960,-500.0,0.00028432,18]
[356062684,1741877473970,-500.0,0.00028432,18]
[356062685,1741877473980,-654.17,0.00028432,18]
[356062686,1741877473990,-500.0,0.00028432,18]
[356062687,1741877474000,-504.82353369,0.00028432,18]
[356062688,1741877474010,-498.99012958,0.00028432,18]
[356062689,1741877474020,-658.91,0.00028432,18]
[356062690,1741877474029,-658.91,0.00028432,18]
[356062691,1741877474042,-500.0,0.00028432,18]
[356062692,1741877474052,-500.0,0.00028432,18]
[356062693,1741877474062,-500.0,0.00028432,18]
[356062694,1741877474071,-500.0,0.00028432,18]
[356062695,1741877474080,-500.0,0.00028432,18]
[356062696,1741877474090,-500.0,0.00028432,18]
[356062697,1741877474099,-500.0,0.00028432,18]
[356062698,1741877474109,-500.0,0.00028432,18]
[356062699,1741877474118,-500.0,0.00028432,18]
[356062700,1741877474128,-500.0,0.00028432,18]
[356062701,1741877474138,-500.0,0.00028432,18]
[356062702,1741877474147,-500.0,0.00028432,18]
[356062703,1741877474156,-541.31,0.00028432,18]
[356062704,1741877474166,-500.0,0.00028432,18]
[356062705,1741877474175,-500.0,0.00028432,18]
[356062706,1741877474184,-500.0,0.00028432,18]
[356062707,1741877474193,-500.0,0.00028432,18]
[356062708,1741877474203,-500.0,0.00028432,18]
[356062709,1741877474212,-500.0,0.00028432,18]
[356062710,1741877474222,-691.39,0.00028432,18]
[356062711,1741877474231,-691.39,0.00028432,18]
[356062712,1741877474240,-500.0,0.00028432,18]
[356062713,1741877474250,-500.0,0.00028432,18]
[356062714,1741877474259,-500.0,0.00028432,18]
[356062715,1741877474272,-500.0,0.00028432,18]
[356062716,1741877474284,-500.0,0.00028432,18]
[356062717,1741877474294,-500.0,0.00028432,18]
[356062718,1741877474303,-500.0,0.00028432,18]
[356062719,1741877474313,-500.0,0.00028432,18]
[356062720,1741877474322,-500.0,0.00028432,18]
[356062721,1741877474331,-753.81,0.00028432,18]
[356062722,1741877474341,-753.81,0.00028432,18]
[356062723,1741877474351,-829.63,0.00028432,18]
[356062724,1741877474360,-500.0,0.00028432,18]
[356062725,1741877474370,-500.0,0.00028432,18]
[356062726,1741877474379,-500.0,0.00028432,18]
[356062727,1741877474389,-500.0,0.00028432,18]
[356062728,1741877474398,-500.0,0.00028432,18]
[356062729,1741877474408,-628.41,0.00028432,18]
[356062730,1741877474417,-500.0,0.00028432,18]
[356062731,1741877474427,-503.77317425,0.00028432,18]
[356062732,1741877474436,-500.0,0.00028432,18]
[356062733,1741877474446,-500.0,0.00028432,18]
[356062734,1741877474455,-508.90413161,0.00028432,18]
[356062735,1741877474464,-500.0,0.00028432,18]
[356062736,1741877474474,-500.0,0.00028432,18]
[356062737,1741877474484,-500.0,0.00028432,18]
[356062738,1741877474493,-500.0,0.00028432,18]
[356062739,1741877474502,-500.0,0.00028432,18]
[356062740,1741877474511,-500.0,0.00028432,18]
[356062741,1741877474520,-500.0,0.00028432,18]
[356062742,1741877474530,-500.0,0.00028432,18]
[356062743,1741877474540,-500.0,0.00028432,18]
[356062744,1741877474549,-500.0,0.00028432,18]
[356062745,1741877474559,-500.0,0.00028432,18]
[356062746,1741877474568,-500.0,0.00028432,18]
[356062747,1741877474577,-500.0,0.00028432,18]
[356062748,1741877474586,-500.0,0.00028432,18]
[356062749,1741877474596,-500.0,0.00028432,18]
[356062750,1741877474605,-500.0,0.00028432,18]
[356062751,1741877474615,-500.0,0.00028432,18]
[356062752,1741877474624,-500.0,0.00028432,18]
[356062753,1741877474634,-477.94960909,0.00028432,18]
[356062754,1741877474643,-502.92,0.00028432,18]
[356062755,1741877474653,-502.92,0.00028432,18]
[356062756,1741877474662,-500.0,0.00028432,18]
[356062757,1741877474672,-500.0,0.00028432,18]
[356062758,1741877474681,-500.0,0.00028432,18]
[356062759,1741877474691,-500.0,0.00028432,18]
[356062760,1741877474702,-500.0,0.00028432,18]
[356062761,1741877474711,-500.0,0.00028432,18]
[356062762,1741877474722,-500.0,0.00028432,18]
[356062763,1741877474731,-500.0,0.00028432,18]
[356062764,1741877474741,-500.0,0.00028432,18]
[356062765,1741877474751,-500.0,0.00028432,18]
[356062766,1741877474761,-500.0,0.00028432,18]
[356062767,1741877474771,-590.79,0.00028432,18]
[356062768,1741877474781,-500.0,0.00028432,18]
[356062769,1741877474792,-500.0,0.00028432,18]
[356062770,1741877474802,-500.0,0.00028432,18]
[356062771,1741877474812,-500.0,0.00028432,18]
[356062772,1741877474823,-500.0,0.00028432,18]
[356062773,1741877474837,-482.60506078,0.00028432,18]
[356062774,1741877474847,-500.0,0.00028432,18]
[356062775,1741877474856,-500.0,0.00028432,18]
[356062776,1741877474868,-500.0,0.00028432,18]
[356062777,1741877474877,-500.0,0.00028432,18]
[356062778,1741877474887,-500.0,0.00028432,18]
[356062779,1741877474897,-500.0,0.00028432,18]
[356062780,1741877474907,-500.0,0.00028432,18]
[356062781,1741877474917,-501.57676706,0.00028432,18]
[356062782,1741877474927,-500.0,0.00028432,18]
[356062783,1741877474937,-500.0,0.00028432,18]
[356062784,1741877474947,-557.2169466,0.00028432,18]
[356062785,1741877474957,-500.0,0.00028432,18]
[356062786,1741877474968,-500.0,0.00028432,18]
[356062787,1741877474978,-500.0,0.00028432,18]
[356062788,1741877474988,-500.0,0.00028432,18]
[356062789,1741877474998,-500.0,0.00028432,18]
[356062790,1741877475008,-500.0,0.00028432,18]
[356062791,1741877475017,-500.0,0.00028432,18]
[356062792,1741877475028,-500.0,0.00028432,18]
[356062793,1741877475041,-500.0,0.00028432,18]
[356062794,1741877475050,-520.42,0.00028432,18]
[356062795,1741877475060,-500.0,0.00028432,18]
[356062796,1741877475070,-500.0,0.00028432,18]
[356062797,1741877475080,-500.0,0.00028432,18]
[356062798,1741877475091,-500.0,0.00028432,18]
[356062799,1741877475100,-500.0,0.00028432,18]
[356062800,1741877475110,-1443.64,0.00028432,18]
[356062801,1741877475296,-500.0,0.00028432,18]
[356062802,1741877475307,-500.0,0.00028432,18]
[356062803,1741877475317,-877.63,0.00028432,18]
[356062804,1741877475327,-547.45,0.00028432,18]
[356062805,1741877475337,-547.45,0.00028432,18]
[356062806,1741877475347,-500.0,0.00028432,18]
[356062807,1741877475357,-543.74,0.00028432,18]
[356062808,1741877475367,-2624.51,0.00028432,18]
[356062809,1741877475377,-877.5,0.00028432,18]
[356062810,1741877475387,-500.0,0.00028432,18]
[356062811,1741877475397,-500.0,0.00028432,18]
[356062812,1741877475406,-612.61,0.00028432,18]
[356062813,1741877475416,-500.0,0.00028432,18]
[356062814,1741877475426,-500.0,0.00028432,18]
[356062815,1741877475437,-841.51,0.00028432,18]
[356062816,1741877475447,-654.97,0.00028432,18]
[356062817,1741877475457,-500.0,0.00028432,18]
[356062818,1741877475466,-500.0,0.00028432,18]
[356062819,1741877475477,-500.0,0.00028432,18]
[356062820,1741877475486,-500.0,0.00028432,18]
[356062821,1741877475496,-500.0,0.00028432,18]
[356062822,1741877475506,-500.0,0.00028432,18]
[356062823,1741877475516,-546.0,0.00028432,18]
[356062824,1741877475525,-911.58,0.00028432,18]
[356062825,1741877475536,-989.11,0.00028432,18]
[356062826,1741877475546,-989.11,0.00028432,18]
[356062827,1741877475555,-653.78,0.00028432,18]
[356062828,1741877475565,-568.24,0.00028432,18]
[356062829,1741877475576,-500.0,0.00028432,18]
[356062830,1741877475591,-512.35,0.00028432,18]
[356062831,1741877475601,-1301.45,0.00028432,18]
[356062832,1741877475611,-500.0,0.00028432,18]
[356062833,1741877475621,-630.4,0.00028432,18]
[356062834,1741877475631,-500.0,0.00028432,18]
[356062835,1741877475641,-560.70131876,0.00028432,18]
[356062836,1741877475651,-500.0,0.00028432,18]
[356062837,1741877475661,-804.68,0.00028432,18]
[356062838,1741877475670,-804.68,0.00028432,18]
[356062839,1741877475680,-631.05,0.00028432,18]
[356062840,1741877475691,-589.78,0.00028432,18]
[356062841,1741877475701,-765.33,0.00028432,18]
[356062842,1741877475711,-1049.42,0.00028432,18]
[356062843,1741877475721,-630.74,0.00028432,18]
[356062844,1741877475732,-500.0,0.00028432,18]
[356062845,1741877475742,-500.0,0.00028432,18]
[356062846,1741877475752,-500.0,0.00028432,18]
[356062847,1741877475762,-1528.16,0.00028432,18]
[356062848,1741877475772,-500.0,0.00028432,18]
[356062849,1741877475783,-500.0,0.00028432,18]
[356062850,1741877475794,-867.081518,0.00028432,18]
[356062851,1741877475804,-500.0,0.00028432,18]
[356062852,1741877475814,-500.0,0.00028432,18]
[356062853,1741877475828,-545.3,0.00028432,18]
[356062854,1741877475838,-545.3,0.00028432,18]
[356062855,1741877475848,-1509.59,0.00028432,18]
[356062856,1741877475858,-6022.95,0.00028432,2]
[356062857,1741877475869,-500.0,0.00028432,18]
[356062858,1741877475879,-500.0,0.00028432,18]
[356062859,1741877475889,-500.0,0.00028432,18]
[356062860,1741877475899,-1152.01,0.00028432,18]
[356062861,1741877475910,-1191.84,0.00028432,18]
[356062862,1741877475921,-1254.42,0.00028432,18]
[356062863,1741877475931,-778.61,0.00028432,18]
[356062864,1741877475941,-861.55,0.00028432,18]
[356062865,1741877475952,-732.88,0.00028432,18]
[356062866,1741877475962,-828.9,0.00028432,18]
[356062867,1741877475973,-500.0,0.00028432,18]
[356062868,1741877475983,-500.0,0.00028432,18]
[356062869,1741877475993,-2250.74,0.00028432,18]
[356062870,1741877476003,-500.0,0.00028432,18]
[356062871,1741877476013,-500.0,0.00028432,18]
[356062872,1741877476024,-611.51,0.00028432,18]
[356062873,1741877476035,-500.0,0.00028432,18]
[356062874,1741877476046,-943.15,0.00028432,18]
[356062875,1741877476057,-500.0,0.00028432,18]
[356062876,1741877476068,-500.0,0.00028432,18]
[356062877,1741877476079,-2877.83,0.00028432,18]
[356062878,1741877476090,-500.0,0.00028432,18]
[356062879,1741877476100,-968.62,0.00028432,18]
[356062880,1741877476110,-517.25,0.00028432,18]
[356062881,1741877476120,-500.0,0.00028432,18]
[356062882,1741877476131,-500.0,0.00028432,18]
[356062883,1741877476141,-500.0,0.00028432,18]
[356062884,1741877476152,-1936.13,0.00028432,18]
[356062885,1741877476162,-500.0,0.00028432,18]
[356062886,1741877476172,-500.0,0.00028432,18]
[356062887,1741877476182,-592.53,0.00028432,18]
[356062888,1741877476193,-500.0,0.00028432,18]
[356062889,1741877476202,-216.77656227,0.00028432,18]
[356062890,1741877476212,-500.0,0.00028432,18]
[356062891,1741877476223,-500.0,0.00028432,18]
[356062892,1741877476232,-500.0,0.00028432,18]
[356062893,1741877476242,-500.0,0.00028432,18]
[356062894,1741877476252,-504.2391952,0.00028432,18]
[356062895,1741877476261,-500.0,0.00028432,18]
[356062896,1741877476273,-1850.13,0.00028432,18]
[356062897,1741877476284,-503.83,0.00028432,18]
[356062898,1741877476296,-503.83,0.00028432,18]
[356062899,1741877476306,-500.0,0.00028432,18]
[356062900,1741877476316,-2562.48,0.00028432,18]
[356062901,1741877476326,-1591.35,0.00028432,18]
[356062902,1741877476336,-500.0,0.00028432,18]
[356062903,1741877476346,-500.0,0.00028432,18]
[356062904,1741877476355,-500.0,0.00028432,18]
[356062905,1741877476365,-2233.91,0.00028432,18]
[356062906,1741877476375,-500.0,0.00028432,18]
[356062907,1741877476385,-1531.67,0.00028432,18]
[356062908,1741877476395,-1279.76,0.00028432,18]
[356062909,1741877476406,-500.0,0.00028432,18]
[356062910,1741877476416,-500.0,0.00028432,18]
[356062911,1741877476427,-917.98,0.00028432,18]
[356062912,1741877476437,-500.0,0.00028432,18]
[356062913,1741877476447,-774.11,0.00028432,18]
[356062914,1741877476459,-584.93,0.00028432,18]
[356062915,1741877476469,-1140.98,0.00028432,18]
[356062916,1741877476479,-500.0,0.00028432,18]
[356062917,1741877476491,-3142.78,0.00028432,18]
[356062918,1741877476502,-650.5,0.00028432,18]
[356062919,1741877476512,-500.0,0.00028432,18]
[356062920,1741877476521,-500.0,0.00028432,18]
[356062921,1741877476532,-502.33099609,0.00028432,18]
[356062922,1741877476552,-1284.79,0.00028432,18]
[356062923,1741877476562,-500.0,0.00028432,18]
[356062924,1741877476574,-1328.89,0.00028432,18]
[356062925,1741877476584,-919.06,0.00028432,18]
[356062926,1741877476593,-673.07,0.00028432,18]
[356062927,1741877476603,-500.0,0.00028432,18]
[356062928,1741877476613,-500.0,0.00028432,18]
[356062929,1741877476623,-706.18,0.00028432,18]
[356062930,1741877476633,-500.0,0.00028432,18]
[356062931,1741877476644,-750.81,0.00028432,18]
[356062932,1741877476655,-500.0,0.00028432,18]
[356062933,1741877476666,-1372.56,0.00028432,18]
[356062934,1741877476677,-500.0,0.00028432,18]
[356062935,1741877476687,-500.0,0.00028432,18]
[356062936,1741877476697,-1294.14,0.00028432,18]
[356062937,1741877476707,-354.83,0.00028432,7]
[356062938,1741877476718,-500.0,0.00028432,18]
[356062939,1741877476728,-500.0,0.00028432,18]
[356062940,1741877476739,-500.0,0.00028432,18]
[356062941,1741877476749,-1026.51,0.00028432,18]
[356062942,1741877476759,-500.0,0.00028432,7]
[356062943,1741877476769,-663.96,0.00028432,18]
[356062944,1741877476779,-500.0,0.00028432,18]
[356062945,1741877476797,-500.0,0.00028432,18]
[356062946,1741877476807,-500.0,0.00028432,18]
[356062947,1741877476817,-500.0,0.00028432,18]
[356062948,1741877476827,-324.24830587,0.00028432,18]
[356062949,1741877476841,-500.0,0.00028432,18]
[356062950,1741877476851,-1799.08,0.00028432,18]
[356062951,1741877476861,-607.97,0.00028432,10]
[356062952,1741877476871,-560.01,0.00028432,18]
[356062953,1741877476882,-500.0,0.00028432,18]
[356062954,1741877476891,-1149.34,0.00028432,18]
[356062955,1741877476901,-500.0,0.00028432,18]
[356062956,1741877476912,-500.0,0.00028432,18]
[356062957,1741877476922,-500.0,0.00028432,18]
[356062958,1741877476932,-500.0,0.00028432,18]
[356062959,1741877476942,-391.50687359,0.00028432,18]
[356062960,1741877476952,-500.0,0.00028432,18]
[356062961,1741877476962,-3134.61,0.00028432,18]
[356062962,1741877476972,-500.0,0.00028432,18]
[356062963,1741877476982,-500.0,0.00028432,18]
[356062964,1741877476991,-500.0,0.00028432,18]
[356062965,1741877477001,-500.0,0.00028432,18]
[356062966,1741877477010,-511.9767196,0.00028432,18]
[356062967,1741877477020,-500.0,0.00028432,18]
[356062968,1741877477030,-500.0,0.00028432,18]
[356062969,1741877477045,-500.0,0.00028432,18]
[356062970,1741877477054,-1794.13,0.00028432,18]
[356062971,1741877477064,-500.0,0.00028432,18]
[356062972,1741877477075,-500.0,0.00028432,18]
[356062973,1741877477084,-500.0,0.00028432,18]
[356062974,1741877477095,-320.15845956,0.00028432,18]
[356062975,1741877477104,-500.0,0.00028432,18]
[356062976,1741877477114,-500.0,0.00028432,18]
[356062977,1741877477123,-862.67,0.00028432,18]
[356062978,1741877477133,-500.0,0.00028432,18]
[356062979,1741877477143,-500.0,0.00028432,18]
[356062980,1741877477152,-505.08796234,0.00028432,18]
[356062981,1741877477162,-500.0,0.00028432,18]
[356062982,1741877477172,-500.0,0.00028432,18]
[356062983,1741877477182,-1839.29,0.00028432,18]
[356062984,1741877477192,-795.32,0.00028432,18]
[356062985,1741877477202,-500.0,0.00028432,18]
[356062986,1741877477212,-500.0,0.00028432,18]
[356062987,1741877477221,-3917.63,0.00028432,18]
[356062988,1741877477231,-1131.1,0.00028432,18]
[356062989,1741877477241,-500.0,0.00028432,18]
[356062990,1741877477251,-500.0,0.00028432,18]
[356062991,1741877477261,-500.0,0.00028432,18]
[356062992,1741877477271,-500.0,0.00028432,18]
[356062993,1741877477281,-500.0,0.00028432,18]
[356062994,1741877477295,-805.12,0.00028432,18]
[356062995,1741877477304,-500.0,0.00028432,18]
[356062996,1741877477314,-500.0,0.00028432,18]
[356062997,1741877477324,-1000.0,0.00028432,18]
[356062998,1741877477334,-3749.8,0.00028432,18]
[356062999,1741877477343,-2736.88,0.00028432,18]
[356063000,1741877477353,-500.0,0.00028432,18]
[356063001,1741877477362,-504.5873197,0.00028432,18]
[356063002,1741877477372,-500.0,0.00028432,18]
[356063003,1741877477382,-500.0,0.00028432,18]
[356063004,1741877477392,-848.53,0.00028432,18]
[356063005,1741877477401,-500.0,0.00028432,18]
[356063006,1741877477410,-944.89,0.00028432,18]
[356063007,1741877477420,-500.0,0.00028432,18]
[356063008,1741877477429,-500.0,0.00028432,18]
[356063009,1741877477439,-503.93,0.00028432,18]
[356063010,1741877477448,-500.0,0.00028432,18]
[356063011,1741877477457,-500.0,0.00028432,18]
[356063012,1741877477467,-500.0,0.00028432,18]
[356063013,1741877477476,-500.0,0.00028432,18]
[356063014,1741877477486,-500.0,0.00028432,18]
[356063015,1741877477496,-500.0,0.00028432,18]
[356063016,1741877477505,-691.19,0.00028432,18]
[356063017,1741877477514,-1721.54,0.00028432,18]
[356063018,1741877477524,-500.0,0.00028432,18]
[356063019,1741877477536,-500.0,0.00028432,18]
[356063020,1741877477546,-500.0,0.00028432,18]
[356063021,1741877477555,-500.0,0.00028432,18]
[356063022,1741877477564,-501.4,0.00028432,18]
[356063023,1741877477574,-500.0,0.00028432,18]
[356063024,1741877477583,-565.02,0.00028432,18]
[356063025,1741877477593,-1201.08,0.00028432,18]
[356063026,1741877477604,-617.67,0.00028432,18]
[356063027,1741877477614,-500.0,0.00028432,18]
[356063028,1741877477624,-2839.76,0.00028432,18]
[356063029,1741877477633,-2263.25,0.00028432,18]
[356063030,1741877477642,-1507.84,0.00028432,18]
[356063031,1741877477651,-1329.69,0.00028432,18]
[356063032,1741877477660,-749.62,0.00028432,18]
[356063033,1741877477669,-580.97,0.00028432,18]
[356063034,1741877477679,-500.0,0.00028432,18]
[356063035,1741877477688,-500.0,0.00028432,18]
[356063036,1741877477697,-500.0,0.00028432,18]
[356063037,1741877477706,-222.26844142,0.00028432,18]
[356063038,1741877477716,-500.0,0.00028432,18]
[356063039,1741877477726,-573.25,0.00028432,18]
[356063040,1741877477735,-500.0,0.00028432,18]
[356063041,1741877477745,-500.0,0.00028432,18]
[356063042,1741877477754,-500.0,0.00028432,18]
[356063043,1741877477763,-714.67,0.00028432,18]
[356063044,1741877477773,-500.0,0.00028432,18]
[356063045,1741877477782,-500.0,0.00028432,18]
[356063046,1741877477792,-500.0,0.00028432,18]
[356063047,1741877477801,-500.0,0.00028432,18]
[356063048,1741877477811,-500.0,0.00028432,18]
[356063049,1741877477820,-582.82,0.00028432,18]
[356063050,1741877477833,-591.54,0.00028432,18]
[356063051,1741877477842,-500.0,0.00028432,18]
[356063052,1741877477851,-500.0,0.00028432,18]
[356063053,1741877477860,-500.0,0.00028433,18]
[356063054,1741877477870,-500.0,0.00028433,18]
[356063055,1741877477880,-502.34,0.00028433,18]
[356063056,1741877477889,-500.0,0.00028433,18]
[356063057,1741877477899,-500.0,0.00028433,18]
[356063058,1741877477908,-500.0,0.00028433,18]
[356063059,1741877477918,-500.0,0.00028433,18]
[356063060,1741877477927,-405.30851072,0.00028433,18]
[356063061,1741877477937,-150.959057,0.00028433,18]
[356063062,1741877477947,-500.0,0.00028433,18]
[356063063,1741877477957,-500.0,0.00028433,18]
[356063064,1741877477967,-500.0,0.00028433,18]
[356063065,1741877477976,-500.0,0.00028433,18]
[356063066,1741877477986,-500.0,0.00028433,18]
[356063067,1741877477995,-500.0,0.00028433,18]
[356063068,1741877478005,-500.0,0.00028433,18]
[356063069,1741877478014,-810.74,0.00028433,18]
[356063070,1741877478024,-500.0,0.00028433,18]
[356063071,1741877478035,-500.0,0.00028433,18]
[356063072,1741877478044,-500.0,0.00028433,18]
[356063073,1741877478053,-500.0,0.00028433,18]
[356063074,1741877478062,-561.76,0.00028433,18]
[356063075,1741877478071,-500.0,0.00028433,18]
[356063076,1741877478081,-640.13,0.00028433,18]
[356063077,1741877478090,-500.0,0.00028433,18]
[356063078,1741877478263,-500.0,0.00028433,18]
[356063079,1741877478275,-187.32,0.00028433,18]
[356063080,1741877478286,-500.0,0.00028433,18]
[356063081,1741877478296,-500.0,0.00028433,18]
[356063082,1741877478305,-523.76,0.00028433,18]
[356063083,1741877478315,-500.0,0.00028433,18]
[356063084,1741877478325,-500.0,0.00028433,18]
[356063085,1741877478334,-500.0,0.00028433,18]
[356063086,1741877478344,-500.0,0.00028433,18]
[356063087,1741877478353,-500.0,0.00028433,18]
[356063088,1741877478363,-538.91,0.00028433,18]
[356063089,1741877478372,-500.0,0.00028433,18]
[356063090,1741877478383,-500.0,0.00028433,18]
[356063091,1741877478392,-539.92,0.00028433,18]
[356063092,1741877478401,-500.0,0.00028433,18]
[356063093,1741877478411,-546.13893677,0.00028433,18]
[356063094,1741877478420,-500.0,0.00028433,18]
[356063095,1741877478430,-500.0,0.00028433,18]
[356063096,1741877478440,-727.13,0.00028433,18]
[356063097,1741877478450,-500.0,0.00028433,18]
[356063098,1741877478459,-500.0,0.00028433,18]
[356063099,1741877478469,-500.0,0.00028433,18]
[356063100,1741877478478,-500.0,0.00028433,18]
[356063101,1741877478488,-500.0,0.00028433,18]
[356063102,1741877478498,-500.0,0.00028433,2]
[356063103,1741877478508,-557.95,0.00028433,18]
[356063104,1741877478522,-500.0,0.00028433,18]
[356063105,1741877478532,-500.0,0.00028433,18]
[356063106,1741877478542,-500.0,0.00028433,18]
[356063107,1741877478551,-500.0,0.00028433,18]
[356063108,1741877478561,-621.92,0.00028433,18]
[356063109,1741877478571,-692.0,0.00028433,18]
[356063110,1741877478580,-509.8029316,0.00028433,18]
[356063111,1741877478590,-500.0,0.00028433,18]
[356063112,1741877478600,-622.0,0.00028433,18]
[356063113,1741877478610,-500.0,0.00028433,18]
[356063114,1741877478619,-629.04,0.00028433,18]
[356063115,1741877478628,-500.0,0.00028433,18]
[356063116,1741877478637,-618.22,0.00028433,18]
[356063117,1741877478647,-500.0,0.00028433,18]
[356063118,1741877478656,-500.0,0.00028433,18]
[356063119,1741877478665,-500.0,0.00028433,18]
[356063120,1741877478675,-500.0,0.00028433,18]
[356063121,1741877478684,-500.0,0.00028433,18]
[356063122,1741877478693,-561.75,0.00028433,18]
[356063123,1741877478703,-868.46,0.00028433,18]
[356063124,1741877478712,-1222.98,0.00028433,18]
[356063125,1741877478722,-500.0,0.00028433,18]
[356063126,1741877478731,-1173.83,0.00028433,18]
[356063127,1741877478740,-1076.94,0.00028433,18]
[356063128,1741877478750,-638.02,0.00028433,18]
[356063129,1741877478760,-710.42,0.00028433,18]
[356063130,1741877478769,-920.42,0.00028433,18]
[356063131,1741877478779,-568.85,0.00028433,18]
[356063132,1741877478791,-660.04,0.00028433,18]
[356063133,1741877478800,-500.0,0.00028433,18]
[356063134,1741877478809,-500.0,0.00028433,18]
[356063135,1741877478818,-500.0,0.00028433,18]
[356063136,1741877478828,-806.85,0.00028433,18]
[356063137,1741877478841,-778.43,0.00028433,18]
[356063138,1741877478851,-500.0,0.00028433,18]
[356063139,1741877478862,-898.3,0.00028433,18]
[356063140,1741877478872,-500.0,0.00028433,18]
[356063141,1741877478884,-500.0,0.00028433,18]
[356063142,1741877478894,-500.0,0.00028433,18]
[356063143,1741877478906,-500.0,0.00028433,18]
[356063144,1741877478919,-612.98,0.00028433,18]
[356063145,1741877478930,-500.0,0.00028433,18]
[356063146,1741877478940,-500.0,0.00028433,18]
[356063147,1741877478951,-500.0,0.00028433,18]
[356063148,1741877478963,-500.0,0.00028433,18]
[356063149,1741877478974,-500.0,0.00028433,18]
[356063150,1741877478984,-500.0,0.00028433,18]
[356063151,1741877478995,-500.0,0.00028433,18]
[356063152,1741877479007,-649.27,0.00028433,18]
[356063153,1741877479017,-654.17,0.00028433,18]
[356063154,1741877479027,-1005.2,0.00028433,18]
[356063155,1741877479042,-556.85,0.00028433,18]
[356063156,1741877479052,-658.91,0.00028433,18]
[356063157,1741877479063,-675.33,0.00028433,18]
[356063158,1741877479077,-500.0,0.00028433,18]
[356063159,1741877479087,-500.0,0.00028433,18]
[356063160,1741877479097,-500.0,0.00028433,18]